fUSD/lending_fUSD_20260531
["ID","MTS","AMOUNT","RATE_DAILY","PERIOD"]
[423562216,1780227042000,-631.58,0.00014999,2]
[423562193,1780227042000,-500.0,0.00014999,2]
[423562199,1780227042000,-373.249,0.00014999,2]
[423562205,1780227042000,-500.0,0.00014999,2]
[423562204,1780227042000,-500.0,0.00014999,2]
[423562203,1780227042000,-500.0,0.00014999,2]
[423562206,1780227042000,-500.0,0.00014999,2]
[423562214,1780227042000,-631.58,0.00014999,2]
[423562213,1780227042000,-631.58,0.00014999,2]
[423562209,1780227042000,-500.0,0.00014999,2]
[423562207,1780227042000,-500.0,0.00014999,2]
[423562208,1780227042000,-500.0,0.00014999,2]
[423562211,1780227042000,-631.58,0.00014999,2]
[423562210,1780227042000,-565.35437327,0.00014999,2]
[423562212,1780227042000,-631.58,0.00014999,2]
[423562192,1780227042000,-500.0,0.00014999,2]
[423562248,1780227042000,-500.0,0.00014999,2]
[423562255,1780227042000,-810.49,0.00014999,2]
[423562247,1780227042000,-500.0,0.00014999,2]
[423562284,1780227042000,-500.0,0.00014999,2]
[423562280,1780227042000,-500.0,0.00014999,2]
[423562282,1780227042000,-500.0,0.00014999,2]
[423562288,1780227042000,-500.0,0.00014999,2]
[423562290,1780227042000,-500.0,0.00014999,2]
[423562283,1780227042000,-500.0,0.00014999,2]
[423562285,1780227042000,-500.0,0.00014999,2]
[423562289,1780227042000,-500.0,0.00014999,2]
[423562286,1780227042000,-500.0,0.00014999,2]
[423562287,1780227042000,-500.0,0.00014999,2]
[423562294,1780227042000,-300.0,0.00014999,2]
[423562293,1780227042000,-158.0,0.00014999,2]
[423562295,1780227042000,-300.0,0.00014999,2]
[423562296,1780227042000,-666.0,0.00014999,2]
[423562298,1780227042000,-300.0,0.00014999,2]
[423562252,1780227042000,-500.0,0.00014999,2]
[423562300,1780227042000,-1028678.98740626,0.00015,2]
[423562299,1780227042000,-666.0,0.00014999,2]
[423562302,1780227042000,-3088.17405779,0.00015,2]
[423562301,1780227042000,-3061.17696543,0.00015,2]
[423562303,1780227042000,-2621.19849465,0.00015,2]
[423562306,1780227042000,-1149.08743536,0.00015,2]
[423562309,1780227042000,-552.93113016,0.00015,2]
[423562311,1780227042000,-12858.89080346,0.00015,2]
[423562304,1780227042000,-1155.05164175,0.00015,2]
[423562310,1780227042000,-503.47737862,0.00015,2]
[423562308,1780227042000,-29045.88646905,0.00015,2]
[423562292,1780227042000,-409.61465953,0.00014999,2]
[423562291,1780227042000,-500.0,0.00014999,2]
[423562297,1780227042000,-300.0,0.00014999,2]
[423562273,1780227042000,-810.49,0.00014999,2]
[423562253,1780227042000,-810.49,0.00014999,2]
[423562254,1780227042000,-500.0,0.00014999,2]
[423562257,1780227042000,-810.49,0.00014999,2]
[423562256,1780227042000,-500.0,0.00014999,2]
[423562258,1780227042000,-500.0,0.00014999,2]
[423562265,1780227042000,-500.0,0.00014999,2]
[423562263,1780227042000,-810.49,0.00014999,2]
[423562251,1780227042000,-810.49,0.00014999,2]
[423562259,1780227042000,-810.49,0.00014999,2]
[423562260,1780227042000,-500.0,0.00014999,2]
[423562281,1780227042000,-500.0,0.00014999,2]
[423562266,1780227042000,-810.49,0.00014999,2]
[423562262,1780227042000,-500.0,0.00014999,2]
[423562261,1780227042000,-810.49,0.00014999,2]
[423562268,1780227042000,-500.0,0.00014999,2]
[423562275,1780227042000,-500.0,0.00014999,2]
[423562277,1780227042000,-500.0,0.00014999,2]
[423562264,1780227042000,-810.49,0.00014999,2]
[423562276,1780227042000,-810.49,0.00014999,2]
[423562271,1780227042000,-810.49,0.00014999,2]
[423562274,1780227042000,-810.49,0.00014999,2]
[423562270,1780227042000,-500.0,0.00014999,2]
[423562269,1780227042000,-810.49,0.00014999,2]
[423562267,1780227042000,-500.0,0.00014999,2]
[423562278,1780227042000,-810.63,0.00014999,2]
[423562279,1780227042000,-500.0,0.00014999,2]
[423562272,1780227042000,-500.0,0.00014999,2]
[423562313,1780227043000,-446.26987052,0.00015,2]
[423562312,1780227043000,-3015.00009,0.00015,2]
[423562319,1780227043000,-4317.92575056,0.00015,2]
[423562318,1780227043000,152.0,0.00030043,120]
[423562321,1780227043000,-1234.60881656,0.00015,2]
[423562320,1780227043000,-833.26908932,0.00015,2]
[423562322,1780227043000,-409.53,0.00015,2]
[423562325,1780227043000,-817.02214613,0.00015,2]
[423562324,1780227043000,-289.82918172,0.00015,2]
[423562327,1780227043000,-9173.40769887,0.00015,2]
[423562326,1780227043000,-456.92043422,0.00015,2]
[423562328,1780227043000,-10847.72803583,0.00015,2]
[423562323,1780227043000,-18938.59472956,0.00015,2]
[423562341,1780227046000,-366.69020406,0.00015,2]
[423562340,1780227046000,-860.61156725,0.00015,2]
[423562339,1780227046000,-492.98298303,0.00015,2]
[423562338,1780227046000,-511.63701206,0.00015,2]
[423562337,1780227046000,-7521.88673891,0.00015,2]
[423562345,1780227326000,600.0,0.00028,120]
[423562346,1780227327000,600.0,0.00029,120]
[423562347,1780227345000,152.0,0.0003004,120]
[423562351,1780227951000,152.0,0.00030034,120]
[423562352,1780227980000,152.0,0.00030034,120]
[423562353,1780228141000,1000.0,0.00030135,120]
[423562354,1780228159000,152.0,0.00030034,120]
[423562383,1780228232000,-300.0,0.000127,4]
[423562378,1780228232000,-6387.133353,0.00012418,2]
[423562377,1780228232000,-193.03803274,0.00012417,2]
[423562375,1780228232000,-500.0,0.00012417,2]
[423562373,1780228232000,-500.0,0.00012417,2]
[423562372,1780228232000,-1200.0,0.00012416,2]
[423562379,1780228232000,-159.42,0.00012481,2]
[423562380,1780228232000,-150.49,0.00012496,2]
[423562371,1780228232000,-150.49,0.00012391,2]
[423562376,1780228232000,-237.34229471,0.00012417,2]
[423562381,1780228232000,-150.0,0.00012568,2]
[423562370,1780228232000,-150.49,0.00012287,2]
[423562382,1780228232000,-150.49,0.000126,2]
[423562369,1780228232000,-209.17060647,0.00012191,2]
[423562367,1780228232000,-288.69,0.00012113,2]
[423562365,1780228232000,-150.49,0.00012079,2]
[423562363,1780228232000,-150.49,0.00011975,2]
[423562364,1780228232000,-2000.0,0.00012069,2]
[423562361,1780228232000,-250.0,0.00011941,2]
[423562362,1780228232000,-56.67068001,0.00011941,2]
[423562366,1780228232000,-236.28,0.00012091,2]
[423562360,1780228232000,-432.89931999,0.00011941,2]
[423562359,1780228232000,-77.10068001,0.00011913,2]
[423562357,1780228232000,-150.49,0.00011871,2]
[423562358,1780228232000,-219.49931999,0.00011913,2]
[423562368,1780228232000,-150.49,0.00012183,2]
[423562385,1780228232000,-174.15,0.00012746,2]
[423562374,1780228232000,-500.0,0.00012417,2]
[423562396,1780228232000,-123048.59995137,0.00013197,2]
[423562395,1780228232000,-150.49,0.0001312,2]
[423562412,1780228232000,-68401.20671712,0.00013397,2]
[423562414,1780228232000,-448.42004428,0.00013397,2]
[423562411,1780228232000,-16325.88706885,0.00013397,2]
[423562410,1780228232000,-150.0,0.00013396,2]
[423562409,1780228232000,-151.0,0.00013394,2]
[423562408,1780228232000,-574.63977582,0.00013387,2]
[423562407,1780228232000,-250.0,0.00013384,2]
[423562406,1780228232000,-240.73375964,0.00013297,2]
[423562405,1780228232000,-711.3328534,0.00013297,2]
[423562403,1780228232000,-21080.42958894,0.00013297,2]
[423562398,1780228232000,-215.61611719,0.00013271,2]
[423562401,1780228232000,-164.46651432,0.00013296,2]
[423562413,1780228232000,-474.20905484,0.00013397,2]
[423562400,1780228232000,-369.5844176,0.00013296,2]
[423562402,1780228232000,-33237.5546,0.00013297,2]
[423562386,1780228232000,-700.0,0.000128,4]
[423562384,1780228232000,-150.49,0.00012704,2]
[423562389,1780228232000,-1000.0,0.000129,4]
[423562394,1780228232000,-150.49,0.00013016,2]
[423562388,1780228232000,-391.5,0.00012899,2]
[423562387,1780228232000,-150.49,0.00012808,2]
[423562392,1780228232000,-150.49,0.00012912,2]
[423562391,1780228232000,-150.0,0.000129,2]
[423562397,1780228232000,-63973.70574863,0.00013197,2]
[423562399,1780228232000,-184.13134432,0.00013296,2]
[423562404,1780228232000,-6014.93935716,0.00013297,2]
[423562393,1780228232000,-4758.28,0.00012994,2]
[423562471,1780228239000,-2000.0,0.00013577,2]
[423562485,1780228239000,-500.0,0.00013698,2]
[423562475,1780228239000,-916.0,0.00013658,2]
[423562476,1780228239000,-150.0,0.00013675,2]
[423562478,1780228239000,-500.0,0.00013698,2]
[423562481,1780228239000,-500.0,0.00013698,2]
[423562482,1780228239000,-425.42139374,0.00013698,2]
[423562486,1780228239000,-500.0,0.00013698,2]
[423562487,1780228239000,-500.0,0.00013698,2]
[423562479,1780228239000,-500.0,0.00013698,2]
[423562500,1780228239000,-500.0,0.00013698,2]
[423562483,1780228239000,-500.0,0.00013698,2]
[423562484,1780228239000,-500.0,0.00013698,2]
[423562488,1780228239000,-500.0,0.00013698,2]
[423562489,1780228239000,-499.80000009,0.00013698,2]
[423562493,1780228239000,-500.0,0.00013698,2]
[423562492,1780228239000,-500.0,0.00013698,2]
[423562494,1780228239000,-500.0,0.00013698,2]
[423562490,1780228239000,-500.0,0.00013698,2]
[423562470,1780228239000,-500.0,0.00013534,2]
[423562480,1780228239000,-500.0,0.00013698,2]
[423562469,1780228239000,-500.0,0.00013534,2]
[423562462,1780228239000,-150.0,0.00013488,2]
[423562474,1780228239000,-21080.42958885,0.00013653,2]
[423562453,1780228239000,-1029.36877674,0.00013397,2]
[423562451,1780228239000,-367.46,0.00012931,2]
[423562452,1780228239000,-137827.2571773,0.00013397,2]
[423562448,1780228239000,-329.16,0.00012931,2]
[423562454,1780228239000,-701.21521527,0.00013397,2]
[423562456,1780228239000,-150.0,0.00013397,2]
[423562457,1780228239000,-600.0,0.00013397,2]
[423562455,1780228239000,-820872.2016456,0.00013397,2]
[423562496,1780228239000,-508.35042822,0.00013698,2]
[423562473,1780228239000,-150.0,0.00013613,2]
[423562458,1780228239000,-193.19602902,0.0001341,14]
[423562463,1780228239000,-150.0,0.00013488,2]
[423562460,1780228239000,-21080.42958885,0.00013475,2]
[423562461,1780228239000,-500.0,0.00013488,2]
[423562464,1780228239000,-151.29500077,0.00013488,2]
[423562465,1780228239000,-150.0,0.00013488,2]
[423562466,1780228239000,-150.0,0.00013488,2]
[423562468,1780228239000,-150.0,0.00013488,2]
[423562467,1780228239000,-150.0,0.00013488,2]
[423562472,1780228239000,-150.0,0.00013581,2]
[423562459,1780228239000,-9752.94281332,0.00013457,2]
[423562491,1780228239000,-500.0,0.00013698,2]
[423562477,1780228239000,-442.3205589,0.00013679,2]
[423562497,1780228239000,-500.0,0.00013698,2]
[423562519,1780228239000,-500.0,0.00013698,2]
[423562524,1780228239000,-500.0,0.00013698,2]
[423562525,1780228239000,-422.76127402,0.00013698,2]
[423562532,1780228239000,-500.0,0.00013698,2]
[423562526,1780228239000,-500.0,0.00013698,2]
[423562533,1780228239000,-500.0,0.00013698,2]
[423562531,1780228239000,-500.0,0.00013698,2]
[423562529,1780228239000,-500.0,0.00013698,2]
[423562530,1780228239000,-500.0,0.00013698,2]
[423562528,1780228239000,-500.0,0.00013698,2]
[423562527,1780228239000,-500.0,0.00013698,2]
[423562535,1780228239000,-500.0,0.00013698,2]
[423562536,1780228239000,-500.0,0.00013698,2]
[423562537,1780228239000,-500.0,0.00013698,2]
[423562539,1780228239000,-500.0,0.00013698,2]
[423562541,1780228239000,-500.0,0.00013698,2]
[423562543,1780228239000,-500.0,0.00013698,2]
[423562540,1780228239000,-500.0,0.00013698,2]
[423562538,1780228239000,-500.0,0.00013698,2]
[423562542,1780228239000,-500.0,0.00013698,2]
[423562499,1780228239000,-500.0,0.00013698,2]
[423562520,1780228239000,-500.0,0.00013698,2]
[423562517,1780228239000,-500.0,0.00013698,2]
[423562534,1780228239000,-500.0,0.00013698,2]
[423562515,1780228239000,-500.0,0.00013698,2]
[423562495,1780228239000,-500.0,0.00013698,2]
[423562516,1780228239000,-500.0,0.00013698,2]
[423562501,1780228239000,-500.0,0.00013698,2]
[423562502,1780228239000,-500.0,0.00013698,2]
[423562498,1780228239000,-500.0,0.00013698,2]
[423562508,1780228239000,-500.0,0.00013698,2]
[423562506,1780228239000,-501.20372086,0.00013698,2]
[423562504,1780228239000,-494.05405209,0.00013698,2]
[423562503,1780228239000,-500.0,0.00013698,2]
[423562505,1780228239000,-500.0,0.00013698,2]
[423562507,1780228239000,-500.0,0.00013698,2]
[423562509,1780228239000,-500.0,0.00013698,2]
[423562511,1780228239000,-500.0,0.00013698,2]
[423562512,1780228239000,-216.73250781,0.00013698,2]
[423562513,1780228239000,-500.0,0.00013698,2]
[423562523,1780228239000,-500.0,0.00013698,2]
[423562514,1780228239000,-431.36730737,0.00013698,2]
[423562522,1780228239000,-500.0,0.00013698,2]
[423562510,1780228239000,-500.0,0.00013698,2]
[423562521,1780228239000,-500.0,0.00013698,2]
[423562518,1780228239000,-500.0,0.00013698,2]
[423562575,1780228240000,-628.42,0.00013698,2]
[423562593,1780228240000,-500.0,0.00013698,2]
[423562581,1780228240000,-628.42,0.00013698,2]
[423562577,1780228240000,-628.42,0.00013698,2]
[423562576,1780228240000,-628.42,0.00013698,2]
[423562583,1780228240000,-500.0,0.00013698,2]
[423562580,1780228240000,-628.42,0.00013698,2]
[423562582,1780228240000,-628.42,0.00013698,2]
[423562573,1780228240000,-500.0,0.00013698,2]
[423562587,1780228240000,-500.0,0.00013698,2]
[423562578,1780228240000,-628.42,0.00013698,2]
[423562579,1780228240000,-628.42,0.00013698,2]
[423562594,1780228240000,-500.0,0.00013698,2]
[423562603,1780228240000,-503.1,0.00013698,2]
[423562595,1780228240000,-500.0,0.00013698,2]
[423562584,1780228240000,-500.0,0.00013698,2]
[423562590,1780228240000,-500.0,0.00013698,2]
[423562586,1780228240000,-500.0,0.00013698,2]
[423562588,1780228240000,-500.0,0.00013698,2]
[423562585,1780228240000,-500.0,0.00013698,2]
[423562591,1780228240000,-500.0,0.00013698,2]
[423562592,1780228240000,-500.0,0.00013698,2]
[423562604,1780228240000,-503.1,0.00013698,2]
[423562606,1780228240000,-503.1,0.00013698,2]
[423562574,1780228240000,-628.42,0.00013698,2]
[423562598,1780228240000,-500.0,0.00013698,2]
[423562589,1780228240000,-500.0,0.00013698,2]
[423562564,1780228240000,-652.41,0.00013698,2]
[423562549,1780228240000,-174.18899724,0.00013698,2]
[423562568,1780228240000,-500.0,0.00013698,2]
[423562597,1780228240000,-500.0,0.00013698,2]
[423562548,1780228240000,-500.0,0.00013698,2]
[423562546,1780228240000,-500.0,0.00013698,2]
[423562545,1780228240000,-500.0,0.00013698,2]
[423562544,1780228240000,-500.0,0.00013698,2]
[423562547,1780228240000,-500.0,0.00013698,2]
[423562556,1780228240000,-500.0,0.00013698,2]
[423562560,1780228240000,-652.41,0.00013698,2]
[423562551,1780228240000,-500.0,0.00013698,2]
[423562558,1780228240000,-652.41,0.00013698,2]
[423562557,1780228240000,-508.41266581,0.00013698,2]
[423562553,1780228240000,-500.0,0.00013698,2]
[423562572,1780228240000,-500.0,0.00013698,2]
[423562554,1780228240000,-202.78843615,0.00013698,2]
[423562559,1780228240000,-652.41,0.00013698,2]
[423562552,1780228240000,-500.0,0.00013698,2]
[423562561,1780228240000,-652.41,0.00013698,2]
[423562555,1780228240000,-500.0,0.00013698,2]
[423562571,1780228240000,-500.0,0.00013698,2]
[423562569,1780228240000,-500.0,0.00013698,2]
[423562570,1780228240000,-500.0,0.00013698,2]
[423562567,1780228240000,-500.0,0.00013698,2]
[423562565,1780228240000,-652.41,0.00013698,2]
[423562563,1780228240000,-652.41,0.00013698,2]
[423562562,1780228240000,-652.41,0.00013698,2]
[423562566,1780228240000,-500.0,0.00013698,2]
[423562550,1780228240000,-500.0,0.00013698,2]
[423562596,1780228240000,-500.0,0.00013698,2]
[423562632,1780228240000,-500.0,0.00013698,2]
[423562600,1780228240000,-500.0,0.00013698,2]
[423562638,1780228240000,-1491.45,0.00013698,2]
[423562634,1780228240000,-500.0,0.00013698,2]
[423562642,1780228240000,-1491.45,0.00013698,2]
[423562641,1780228240000,-1491.45,0.00013698,2]
[423562640,1780228240000,-1491.45,0.00013698,2]
[423562637,1780228240000,-1491.45,0.00013698,2]
[423562636,1780228240000,-1491.45,0.00013698,2]
[423562639,1780228240000,-1491.45,0.00013698,2]
[423562644,1780228240000,-1491.45,0.00013698,2]
[423562650,1780228240000,-500.0,0.00013699,2]
[423562656,1780228240000,-500.0,0.00013699,2]
[423562647,1780228240000,-166.66,0.00013699,2]
[423562635,1780228240000,-303.83318809,0.00013698,2]
[423562654,1780228240000,-500.0,0.00013699,2]
[423562648,1780228240000,-200.0,0.00013699,2]
[423562649,1780228240000,-500.0,0.00013699,2]
[423562655,1780228240000,-299.30722292,0.00013699,2]
[423562652,1780228240000,-500.0,0.00013699,2]
[423562651,1780228240000,-500.0,0.00013699,2]
[423562653,1780228240000,-500.0,0.00013699,2]
[423562660,1780228240000,-500.0,0.00013699,2]
[423562659,1780228240000,-500.0,0.00013699,2]
[423562658,1780228240000,-500.0,0.00013699,2]
[423562657,1780228240000,-500.0,0.00013699,2]
[423562602,1780228240000,-503.1,0.00013698,2]
[423562661,1780228240000,-500.0,0.00013699,2]
[423562646,1780228240000,-500.0,0.00013698,2]
[423562643,1780228240000,-500.0,0.00013698,2]
[423562645,1780228240000,-500.0,0.00013698,2]
[423562631,1780228240000,-500.0,0.00013698,2]
[423562605,1780228240000,-503.1,0.00013698,2]
[423562633,1780228240000,-500.0,0.00013698,2]
[423562601,1780228240000,-503.1,0.00013698,2]
[423562607,1780228240000,-503.1,0.00013698,2]
[423562609,1780228240000,-503.1,0.00013698,2]
[423562608,1780228240000,-503.1,0.00013698,2]
[423562617,1780228240000,-500.0,0.00013698,2]
[423562613,1780228240000,-500.0,0.00013698,2]
[423562612,1780228240000,-500.0,0.00013698,2]
[423562615,1780228240000,-500.0,0.00013698,2]
[423562611,1780228240000,-500.0,0.00013698,2]
[423562614,1780228240000,-500.0,0.00013698,2]
[423562616,1780228240000,-500.0,0.00013698,2]
[423562610,1780228240000,-500.0,0.00013698,2]
[423562599,1780228240000,-500.0,0.00013698,2]
[423562630,1780228240000,-500.0,0.00013698,2]
[423562618,1780228240000,-500.0,0.00013698,2]
[423562627,1780228240000,-500.0,0.00013698,2]
[423562628,1780228240000,-500.0,0.00013698,2]
[423562625,1780228240000,-981.4,0.00013698,2]
[423562624,1780228240000,-981.4,0.00013698,2]
[423562626,1780228240000,-981.4,0.00013698,2]
[423562629,1780228240000,-500.0,0.00013698,2]
[423562623,1780228240000,-981.4,0.00013698,2]
[423562621,1780228240000,-981.4,0.00013698,2]
[423562619,1780228240000,-981.4,0.00013698,2]
[423562620,1780228240000,-981.4,0.00013698,2]
[423562622,1780228240000,-981.4,0.00013698,2]
[423562701,1780228241000,-500.0,0.0001412,4]
[423562702,1780228241000,-500.0,0.0001412,2]
[423562694,1780228241000,-711.3328534,0.00014099,2]
[423562699,1780228241000,-500.0,0.0001412,2]
[423562703,1780228241000,-500.0,0.0001412,2]
[423562698,1780228241000,-500.0,0.0001412,2]
[423562693,1780228241000,-150.0,0.0001405,2]
[423562700,1780228241000,-500.0,0.0001412,3]
[423562704,1780228241000,-500.0,0.0001412,2]
[423562696,1780228241000,-150.0,0.00014112,2]
[423562697,1780228241000,-500.0,0.0001412,2]
[423562695,1780228241000,-166.66,0.0001411,2]
[423562705,1780228241000,-500.0,0.0001412,2]
[423562711,1780228241000,-150.0,0.00014237,2]
[423562707,1780228241000,-152.0,0.00014128,2]
[423562714,1780228241000,-150.0,0.00014237,2]
[423562709,1780228241000,-500.0,0.00014187,2]
[423562706,1780228241000,-500.0,0.0001412,2]
[423562712,1780228241000,-150.0,0.00014237,2]
[423562713,1780228241000,-150.0,0.00014237,2]
[423562710,1780228241000,-21080.42958885,0.00014188,2]
[423562715,1780228241000,-150.0,0.00014237,2]
[423562725,1780228241000,-503.1,0.00014365,2]
[423562718,1780228241000,-500.0,0.0001431,2]
[423562719,1780228241000,-150.0,0.00014331,2]
[423562692,1780228241000,-500.0,0.00014036,2]
[423562708,1780228241000,-150.0,0.00014143,2]
[423562683,1780228241000,-150.0,0.00013956,2]
[423562665,1780228241000,-150.0,0.00013737,2]
[423562687,1780228241000,-255.0,0.00014009,2]
[423562717,1780228241000,-500.0,0.00014276,2]
[423562666,1780228241000,-500.0,0.00013762,2]
[423562667,1780228241000,-150.0,0.00013769,2]
[423562662,1780228241000,-500.0,0.00013699,2]
[423562663,1780228241000,-500.0,0.00013699,2]
[423562664,1780228241000,-500.0,0.00013699,2]
[423562668,1780228241000,-796.01393389,0.00013826,2]
[423562674,1780228241000,-500.0,0.0001383,2]
[423562679,1780228241000,-150.0,0.00013862,2]
[423562670,1780228241000,-652.41,0.0001383,2]
[423562669,1780228241000,-500.0,0.0001383,2]
[423562678,1780228241000,-150.0,0.00013862,2]
[423562671,1780228241000,-245.62717302,0.0001383,2]
[423562681,1780228241000,-150.0,0.00013862,2]
[423562672,1780228241000,-500.0,0.0001383,2]
[423562675,1780228241000,-1491.45,0.0001383,2]
[423562680,1780228241000,-150.0,0.00013862,2]
[423562677,1780228241000,-166.66,0.00013836,2]
[423562673,1780228241000,-981.4,0.0001383,2]
[423562676,1780228241000,-21080.42958885,0.00013831,2]
[423562689,1780228241000,-151.0,0.00014009,2]
[423562685,1780228241000,-150.0,0.00013987,2]
[423562684,1780228241000,-166.66,0.00013973,2]
[423562682,1780228241000,-150.0,0.00013862,2]
[423562686,1780228241000,-150.0,0.00013987,2]
[423562691,1780228241000,-21080.42958885,0.00014009,2]
[423562688,1780228241000,-151.0,0.00014009,2]
[423562690,1780228241000,-298.316198,0.00014009,2]
[423562727,1780228241000,-21080.42958885,0.00014366,2]
[423562780,1780228241000,-376.0,0.00014807,2]
[423562720,1780228241000,-350.0,0.00014337,2]
[423562753,1780228241000,-1700.0,0.000147,5]
[423562759,1780228241000,-500.0,0.00014721,2]
[423562763,1780228241000,-500.0,0.00014723,2]
[423562754,1780228241000,-150.0,0.00014705,2]
[423562761,1780228241000,-37284.69366132,0.00014722,2]
[423562756,1780228241000,-652.41,0.00014721,2]
[423562758,1780228241000,-981.4,0.00014721,2]
[423562752,1780228241000,-2266.0,0.000147,2]
[423562757,1780228241000,-500.0,0.00014721,2]
[423562762,1780228241000,-21080.42958885,0.00014722,2]
[423562766,1780228241000,-463.53307865,0.00014746,2]
[423562769,1780228241000,-376.0,0.00014761,2]
[423562755,1780228241000,-500.0,0.00014721,2]
[423562764,1780228241000,-2000.0,0.00014723,2]
[423562768,1780228241000,-376.0,0.00014758,2]
[423562765,1780228241000,-150.0,0.00014737,2]
[423562775,1780228241000,-376.0,0.000148,2]
[423562773,1780228241000,-376.0,0.00014794,2]
[423562772,1780228241000,-1422.21724266,0.00014787,2]
[423562767,1780228241000,-376.0,0.00014746,2]
[423562771,1780228241000,-425.0,0.00014775,2]
[423562774,1780228241000,-150.0,0.00014799,2]
[423562777,1780228241000,-10000.0,0.000148,2]
[423562778,1780228241000,-376.0,0.00014804,2]
[423562779,1780228241000,-152.0,0.00014805,7]
[423562724,1780228241000,-500.0,0.00014365,2]
[423562770,1780228241000,-376.0,0.00014767,2]
[423562751,1780228241000,-450.25,0.00014698,2]
[423562776,1780228241000,-300.0,0.000148,5]
[423562744,1780228241000,-150.0,0.00014612,2]
[423562716,1780228241000,-166.66,0.00014247,2]
[423562760,1780228241000,-1491.45,0.00014721,2]
[423562722,1780228241000,-150.0,0.00014362,2]
[423562723,1780228241000,-628.42,0.00014365,2]
[423562726,1780228241000,-37284.69366132,0.00014366,2]
[423562729,1780228241000,-151.0,0.00014366,2]
[423562728,1780228241000,-151.0,0.00014366,2]
[423562738,1780228241000,-696.62,0.00014547,2]
[423562730,1780228241000,-166.66,0.00014384,2]
[423562735,1780228241000,-150.0,0.00014518,2]
[423562736,1780228241000,-37284.69366132,0.00014544,2]
[423562732,1780228241000,-350.0,0.00014482,2]
[423562733,1780228241000,-150.0,0.00014487,2]
[423562721,1780228241000,-174.15,0.00014339,2]
[423562734,1780228241000,-150.0,0.00014487,2]
[423562731,1780228241000,-150.0,0.00014424,2]
[423562742,1780228241000,-2000.0,0.000146,2]
[423562741,1780228241000,-2000.0,0.000146,2]
[423562748,1780228241000,-150.0,0.00014612,2]
[423562750,1780228241000,-10000.0,0.00014641,2]
[423562747,1780228241000,-150.0,0.00014612,2]
[423562745,1780228241000,-150.0,0.00014612,2]
[423562743,1780228241000,-1400.0,0.000146,5]
[423562746,1780228241000,-150.0,0.00014612,2]
[423562737,1780228241000,-21080.42958885,0.00014544,2]
[423562739,1780228241000,-500.0,0.00014584,2]
[423562749,1780228241000,-150.0,0.00014637,2]
[423562740,1780228241000,-2000.0,0.000146,2]
[423562808,1780228242000,-2000.0,0.0001485,2]
[423562804,1780228242000,-376.0,0.00014842,2]
[423562807,1780228242000,-500.0,0.00014849,2]
[423562811,1780228242000,-200.0,0.00014855,2]
[423562812,1780228242000,-500.0,0.00014858,2]
[423562810,1780228242000,-1000.0,0.00014855,2]
[423562806,1780228242000,-386.0,0.00014846,2]
[423562817,1780228242000,-1422.21724266,0.00014866,2]
[423562821,1780228242000,-200.0,0.00014879,2]
[423562824,1780228242000,-163.0,0.0001488,2]